[Event "Titled Tuesday Blitz June 8 2021"]
[White "Cardoso Cardoso, Jose Gabriel"]
[Black "Weetik, Vjacheslav"]
[WhiteFideId "4430492"]
[BlackFideId "4153472"]
[WhiteElo "2343"]
[BlackElo "2469"]
[Result "0-1"]
[Round "08"]
[TimeControl "180+1"]
[Date "2021.06.08"]
[WhiteClock "0:00:22"]
[BlackClock "0:00:12"]

1. c4 {[%clk 0:03:00]}  e6 {[%clk 0:02:58]} 2. Nc3 {[%clk 0:03:01]}  d5 {[%clk 0:02:58]} 3. d4 {[%clk 0:03:01]}  c6 {[%clk 0:02:58]} 4. e4 {[%clk 0:02:59]}  dxe4 {[%clk 0:02:57]} 5. Nxe4 {[%clk 0:03:00]}  Bb4+ {[%clk 0:02:57]} 6. Nc3 {[%clk 0:03:01]}  c5 {[%clk 0:02:55]} 7. Nf3 {[%clk 0:03:01]}  Nf6 {[%clk 0:02:41]} 8. a3 {[%clk 0:03:00]}  Ba5 {[%clk 0:02:32]} 9. Be2 {[%clk 0:03:00]}  Nc6 {[%clk 0:02:25]} 10. Be3 {[%clk 0:02:52]}  Ne4 {[%clk 0:02:14]} 11. Rc1 {[%clk 0:02:39]}  cxd4 {[%clk 0:02:05]} 12. Nxd4 {[%clk 0:02:37]}  Nxc3 {[%clk 0:02:03]} 13. bxc3 {[%clk 0:02:38]}  Bd7 {[%clk 0:02:01]} 14. O-O {[%clk 0:02:35]}  O-O {[%clk 0:02:00]} 15. Qb3 {[%clk 0:02:30]}  Bb6 {[%clk 0:01:50]} 16. Rfd1 {[%clk 0:02:25]}  Qe7 {[%clk 0:01:50]} 17. Nxc6 {[%clk 0:02:07]}  Bxc6 {[%clk 0:01:49]} 18. Bxb6 {[%clk 0:02:07]}  axb6 {[%clk 0:01:50]} 19. Qxb6 {[%clk 0:02:08]}  Rxa3 {[%clk 0:01:46]} 20. Qb4 {[%clk 0:02:07]}  Qg5 {[%clk 0:01:38]} 21. Bf1 {[%clk 0:02:07]}  Ra2 {[%clk 0:01:30]} 22. c5 {[%clk 0:02:03]}  h6 {[%clk 0:01:16]} 23. h4 {[%clk 0:01:57]}  Qf6 {[%clk 0:01:12]} 24. Qd4 {[%clk 0:01:53]}  e5 {[%clk 0:01:10]} 25. Qe3 {[%clk 0:01:51]}  Qxh4 {[%clk 0:01:09]} 26. Ra1 {[%clk 0:01:47]}  Rfa8 {[%clk 0:01:06]} 27. Rxa2 {[%clk 0:01:29]}  Rxa2 {[%clk 0:01:05]} 28. Re1 {[%clk 0:01:30]}  Qf4 {[%clk 0:00:53]} 29. Qxf4 {[%clk 0:01:14]}  exf4 {[%clk 0:00:52]} 30. Bc4 {[%clk 0:01:14]}  Rc2 {[%clk 0:00:28]} 31. Re7 {[%clk 0:01:12]}  Rxc3 {[%clk 0:00:27]} 32. Bxf7+ {[%clk 0:01:12]}  Kf8 {[%clk 0:00:27]} 33. Rc7 {[%clk 0:01:12]}  Rxc5 {[%clk 0:00:27]} 34. f3 {[%clk 0:01:09]}  b6 {[%clk 0:00:21]} 35. Bg6 {[%clk 0:01:05]}  Be8 {[%clk 0:00:16]} 36. Rb7 {[%clk 0:00:40]}  Bxg6 {[%clk 0:00:15]} 37. Rxb6 {[%clk 0:00:41]}  Be8 {[%clk 0:00:14]} 38. Rb4 {[%clk 0:00:41]}  Rf5 {[%clk 0:00:14]} 39. Kh2 {[%clk 0:00:42]}  g5 {[%clk 0:00:15]} 40. Rb7 {[%clk 0:00:42]}  Bf7 {[%clk 0:00:15]} 41. Rb6 {[%clk 0:00:42]}  Kg7 {[%clk 0:00:15]} 42. Ra6 {[%clk 0:00:43]}  Rf6 {[%clk 0:00:16]} 43. Ra5 {[%clk 0:00:43]}  Kg6 {[%clk 0:00:16]} 44. Rc5 {[%clk 0:00:44]}  h5 {[%clk 0:00:17]} 45. Kh3 {[%clk 0:00:44]}  Be6+ {[%clk 0:00:17]} 46. Kh2 {[%clk 0:00:44]}  Bf5 {[%clk 0:00:17]} 47. Rb5 {[%clk 0:00:43]}  Re6 {[%clk 0:00:17]} 48. Rb4 {[%clk 0:00:42]}  Rd6 {[%clk 0:00:16]} 49. Ra4 {[%clk 0:00:42]}  Rf6 {[%clk 0:00:16]} 50. Rb4 {[%clk 0:00:42]}  Be6 {[%clk 0:00:16]} 51. Rb6 {[%clk 0:00:40]}  g4 {[%clk 0:00:16]} 52. Rb4 {[%clk 0:00:40]}  g3+ {[%clk 0:00:16]} 53. Kg1 {[%clk 0:00:40]}  Kg5 {[%clk 0:00:16]} 54. Rb5+ {[%clk 0:00:40]}  Bf5 {[%clk 0:00:17]} 55. Rc5 {[%clk 0:00:35]}  Rd6 {[%clk 0:00:16]} 56. Kf1 {[%clk 0:00:32]}  Rd1+ {[%clk 0:00:15]} 57. Ke2 {[%clk 0:00:33]}  Rg1 {[%clk 0:00:16]} 58. Rc7 {[%clk 0:00:26]}  Rxg2+ {[%clk 0:00:16]} 59. Kf1 {[%clk 0:00:27]}  Rf2+ {[%clk 0:00:16]} 60. Kg1 {[%clk 0:00:28]}  Rxf3 {[%clk 0:00:15]} 61. Rg7+ {[%clk 0:00:27]}  Kh4 {[%clk 0:00:12]} 62. Kg2 {[%clk 0:00:22]}  Rf2+ {[%clk 0:00:12]} 63. Kg1 {[%clk 0:00:22]}  Bh3 {[%clk 0:00:12]} 0-1


[Site "https://www.chess.com"]

[Event "Titled Tuesday Blitz June 8 2021"]
[White "Csonka, Balazs"]
[Black "Hess, Robert"]
[WhiteFideId "742910"]
[BlackFideId "2022036"]
[WhiteElo "2404"]
[BlackElo "2557"]
[Result "1/2-1/2"]
[Round "08"]
[TimeControl "180+1"]
[Date "2021.06.08"]
[WhiteClock "0:00:04"]
[BlackClock "0:00:15"]

1. d4 {[%clk 0:03:00]}  g6 {[%clk 0:03:00]} 2. c4 {[%clk 0:02:58]}  Bg7 {[%clk 0:03:01]} 3. e4 {[%clk 0:02:59]}  d6 {[%clk 0:03:01]} 4. Nc3 {[%clk 0:02:59]}  e5 {[%clk 0:03:02]} 5. d5 {[%clk 0:02:59]}  f5 {[%clk 0:03:02]} 6. exf5 {[%clk 0:03:00]}  gxf5 {[%clk 0:03:03]} 7. Qh5+ {[%clk 0:02:59]}  Kf8 {[%clk 0:03:03]} 8. Bd3 {[%clk 0:02:57]}  Nf6 {[%clk 0:03:01]} 9. Qg5 {[%clk 0:02:57]}  h6 {[%clk 0:02:25]} 10. Qg6 {[%clk 0:02:52]}  Qe8 {[%clk 0:02:11]} 11. Bxf5 {[%clk 0:02:48]}  Qxg6 {[%clk 0:02:06]} 12. Bxg6 {[%clk 0:02:49]}  Na6 {[%clk 0:02:03]} 13. Nge2 {[%clk 0:02:43]}  Bg4 {[%clk 0:01:55]} 14. f3 {[%clk 0:02:40]}  Bh5 {[%clk 0:01:55]} 15. Bxh5 {[%clk 0:02:38]}  Nxh5 {[%clk 0:01:56]} 16. Be3 {[%clk 0:02:34]}  Ke7 {[%clk 0:01:53]} 17. Ng3 {[%clk 0:02:31]}  Nxg3 {[%clk 0:01:51]} 18. hxg3 {[%clk 0:02:31]}  h5 {[%clk 0:01:47]} 19. a3 {[%clk 0:02:16]}  Bh6 {[%clk 0:01:41]} 20. Ke2 {[%clk 0:02:07]}  Bxe3 {[%clk 0:01:38]} 21. Kxe3 {[%clk 0:02:08]}  Rag8 {[%clk 0:01:38]} 22. Ne4 {[%clk 0:02:07]}  Nc5 {[%clk 0:01:10]} 23. Nxc5 {[%clk 0:02:02]}  dxc5 {[%clk 0:01:10]} 24. Rh3 {[%clk 0:01:59]}  Rh6 {[%clk 0:01:09]} 25. Rah1 {[%clk 0:01:56]}  Rb6 {[%clk 0:01:09]} 26. Rxh5 {[%clk 0:01:45]}  Rxb2 {[%clk 0:01:09]} 27. Rh7+ {[%clk 0:01:45]}  Kd8 {[%clk 0:01:08]} 28. R1h2 {[%clk 0:00:54]}  Kc8 {[%clk 0:00:52]} 29. g4 {[%clk 0:00:48]}  b6 {[%clk 0:00:52]} 30. Ke4 {[%clk 0:00:34]}  Re2+ {[%clk 0:00:44]} 31. Kf5 {[%clk 0:00:34]}  Rf8+ {[%clk 0:00:38]} 32. Kg6 {[%clk 0:00:23]}  e4 {[%clk 0:00:38]} 33. Rh8 {[%clk 0:00:14]}  Rxh8 {[%clk 0:00:38]} 34. Rxh8+ {[%clk 0:00:15]}  Kb7 {[%clk 0:00:39]} 35. f4 {[%clk 0:00:13]}  Rxg2 {[%clk 0:00:35]} 36. g5 {[%clk 0:00:13]}  e3 {[%clk 0:00:31]} 37. Re8 {[%clk 0:00:12]}  e2 {[%clk 0:00:32]} 38. f5 {[%clk 0:00:12]}  b5 {[%clk 0:00:33]} 39. f6 {[%clk 0:00:11]}  bxc4 {[%clk 0:00:17]} 40. f7 {[%clk 0:00:12]}  Rf2 {[%clk 0:00:18]} 41. Rxe2 {[%clk 0:00:09]}  Rxe2 {[%clk 0:00:19]} 42. f8=Q {[%clk 0:00:09]}  c3 {[%clk 0:00:19]} 43. Qxc5 {[%clk 0:00:09]}  c2 {[%clk 0:00:20]} 44. Kg7 {[%clk 0:00:05]}  Kc8 {[%clk 0:00:17]} 45. g6 {[%clk 0:00:05]}  Kd7 {[%clk 0:00:18]} 46. Qb5+ {[%clk 0:00:04]}  Kd8 {[%clk 0:00:15]} 47. Qc5 {[%clk 0:00:04]}  Kd7 {[%clk 0:00:14]} 48. Kf6 {[%clk 0:00:03]}  Rf2+ {[%clk 0:00:15]} 49. Kg7 {[%clk 0:00:04]}  Re2 {[%clk 0:00:15]} 1/2-1/2


[Site "https://www.chess.com"]

[Event "Titled Tuesday Blitz June 8 2021"]
[White "Cunjalo, Faris"]
[Black "Baskin, Robert"]
[WhiteFideId "14410710"]
[BlackFideId "24662402"]
[WhiteElo "2234"]
[BlackElo "2462"]
[Result "1-0"]
[Round "08"]
[TimeControl "180+1"]
[Date "2021.06.08"]
[WhiteClock "0:00:41"]
[BlackClock "0:00:35"]

1. Nf3 {[%clk 0:03:00]}  d5 {[%clk 0:02:58]} 2. e3 {[%clk 0:02:59]}  Nf6 {[%clk 0:02:57]} 3. c4 {[%clk 0:02:59]}  c6 {[%clk 0:02:57]} 4. Nc3 {[%clk 0:02:59]}  a6 {[%clk 0:02:57]} 5. b3 {[%clk 0:03:00]}  Bf5 {[%clk 0:02:55]} 6. Bb2 {[%clk 0:02:58]}  h6 {[%clk 0:02:55]} 7. d4 {[%clk 0:02:50]}  e6 {[%clk 0:02:54]} 8. Bd3 {[%clk 0:02:47]}  Bxd3 {[%clk 0:02:54]} 9. Qxd3 {[%clk 0:02:48]}  Bb4 {[%clk 0:02:53]} 10. O-O {[%clk 0:02:48]}  O-O {[%clk 0:02:50]} 11. Rfd1 {[%clk 0:02:45]}  Nbd7 {[%clk 0:02:50]} 12. a3 {[%clk 0:02:45]}  Bxc3 {[%clk 0:02:49]} 13. Bxc3 {[%clk 0:02:44]}  Ne4 {[%clk 0:02:44]} 14. Bb4 {[%clk 0:02:40]}  Re8 {[%clk 0:02:43]} 15. a4 {[%clk 0:02:39]}  a5 {[%clk 0:02:18]} 16. Ba3 {[%clk 0:02:37]}  Qb6 {[%clk 0:02:18]} 17. Rac1 {[%clk 0:02:32]}  Qa6 {[%clk 0:02:18]} 18. h3 {[%clk 0:02:29]}  Reb8 {[%clk 0:02:13]} 19. Rc2 {[%clk 0:02:18]}  b5 {[%clk 0:02:11]} 20. cxd5 {[%clk 0:02:06]}  cxd5 {[%clk 0:01:51]} 21. axb5 {[%clk 0:01:59]}  Rxb5 {[%clk 0:01:51]} 22. Rc7 {[%clk 0:01:59]}  Qb6 {[%clk 0:01:25]} 23. Rxd7 {[%clk 0:01:14]}  Rxb3 {[%clk 0:01:25]} 24. Qc2 {[%clk 0:01:15]}  Rxa3 {[%clk 0:01:23]} 25. Ne5 {[%clk 0:01:15]}  Rf8 {[%clk 0:01:15]} 26. Rb1 {[%clk 0:01:05]}  Rc3 {[%clk 0:01:13]} 27. Qxe4 {[%clk 0:01:06]}  Rb3 {[%clk 0:01:04]} 28. Rxb3 {[%clk 0:01:05]}  Qxb3 {[%clk 0:01:05]} 29. Qf4 {[%clk 0:00:50]}  a4 {[%clk 0:00:45]} 30. Rxf7 {[%clk 0:00:50]}  Rxf7 {[%clk 0:00:44]} 31. Qxf7+ {[%clk 0:00:51]}  Kh7 {[%clk 0:00:41]} 32. Nd7 {[%clk 0:00:47]}  Kh8 {[%clk 0:00:37]} 33. Qe8+ {[%clk 0:00:40]}  Kh7 {[%clk 0:00:36]} 34. Nf8+ {[%clk 0:00:41]}  Kh8 {[%clk 0:00:36]} 35. Nxe6+ {[%clk 0:00:41]}  Kh7 {[%clk 0:00:35]} 36. Qf7 {[%clk 0:00:41]} 1-0


[Site "https://www.chess.com"]

[Event "Titled Tuesday Blitz June 8 2021"]
[White "Demchenko, Anton"]
[Black "Rosen, Eric"]
[WhiteFideId "4160258"]
[BlackFideId "2032562"]
[WhiteElo "2593"]
[BlackElo "2362"]
[Result "1-0"]
[Round "08"]
[TimeControl "180+1"]
[Date "2021.06.08"]
[WhiteClock "0:00:08"]
[BlackClock "0:00:05"]

1. e4 {[%clk 0:03:00]}  e5 {[%clk 0:03:00]} 2. Nf3 {[%clk 0:03:00]}  Nf6 {[%clk 0:03:01]} 3. Nxe5 {[%clk 0:02:58]}  Nc6 {[%clk 0:03:01]} 4. Nxc6 {[%clk 0:02:57]}  dxc6 {[%clk 0:03:02]} 5. d3 {[%clk 0:02:55]}  Bc5 {[%clk 0:03:03]} 6. Be2 {[%clk 0:02:55]}  h5 {[%clk 0:03:03]} 7. h3 {[%clk 0:02:51]}  Qd4 {[%clk 0:03:02]} 8. O-O {[%clk 0:02:49]}  Qd6 {[%clk 0:03:00]} 9. Be3 {[%clk 0:02:06]}  Bxe3 {[%clk 0:02:50]} 10. fxe3 {[%clk 0:02:06]}  Bxh3 {[%clk 0:02:50]} 11. Qe1 {[%clk 0:01:38]}  Bg4 {[%clk 0:02:39]} 12. Bf3 {[%clk 0:01:37]}  Bxf3 {[%clk 0:01:35]} 13. gxf3 {[%clk 0:01:36]}  g5 {[%clk 0:01:35]} 14. Nc3 {[%clk 0:01:29]}  O-O-O {[%clk 0:01:34]} 15. d4 {[%clk 0:01:24]}  Qe6 {[%clk 0:01:30]} 16. e5 {[%clk 0:01:15]}  Nd5 {[%clk 0:01:24]} 17. Ne4 {[%clk 0:01:09]}  g4 {[%clk 0:01:09]} 18. f4 {[%clk 0:01:07]}  Qf5 {[%clk 0:01:09]} 19. Ng5 {[%clk 0:01:02]}  Qxc2 {[%clk 0:00:59]} 20. Rd1 {[%clk 0:00:36]}  Qg6 {[%clk 0:00:42]} 21. Qg3 {[%clk 0:00:25]}  Kb8 {[%clk 0:00:38]} 22. e4 {[%clk 0:00:25]}  h4 {[%clk 0:00:34]} 23. Qf2 {[%clk 0:00:26]}  Nb6 {[%clk 0:00:16]} 24. b4 {[%clk 0:00:22]}  g3 {[%clk 0:00:12]} 25. Qf3 {[%clk 0:00:22]}  Nc4 {[%clk 0:00:04]} 26. Rd3 {[%clk 0:00:23]}  b5 {[%clk 0:00:04]} 27. Qg4 {[%clk 0:00:20]}  f6 {[%clk 0:00:03]} 28. exf6 {[%clk 0:00:19]}  Qxf6 {[%clk 0:00:04]} 29. e5 {[%clk 0:00:20]}  Qg6 {[%clk 0:00:03]} 30. f5 {[%clk 0:00:20]}  Qg8 {[%clk 0:00:04]} 31. Rfd1 {[%clk 0:00:15]}  Qd5 {[%clk 0:00:04]} 32. f6 {[%clk 0:00:12]}  h3 {[%clk 0:00:03]} 33. Nxh3 {[%clk 0:00:08]}  Rdg8 {[%clk 0:00:03]} 34. Qf5 {[%clk 0:00:06]}  Nd6 {[%clk 0:00:02]} 35. Qf3 {[%clk 0:00:05]}  Qxf3 {[%clk 0:00:02]} 36. Rxf3 {[%clk 0:00:06]}  Rxh3 {[%clk 0:00:03]} 37. exd6 {[%clk 0:00:06]}  cxd6 {[%clk 0:00:03]} 38. f7 {[%clk 0:00:07]}  Rf8 {[%clk 0:00:03]} 39. Re1 {[%clk 0:00:08]}  Kc7 {[%clk 0:00:03]} 40. Re8 {[%clk 0:00:07]}  Rhh8 {[%clk 0:00:03]} 41. Re7+ {[%clk 0:00:08]}  Kb6 {[%clk 0:00:04]} 42. Rxg3 {[%clk 0:00:09]}  Rh7 {[%clk 0:00:04]} 43. Rf3 {[%clk 0:00:09]}  Rg7+ {[%clk 0:00:04]} 44. Kf2 {[%clk 0:00:09]}  Rg4 {[%clk 0:00:04]} 45. Ke3 {[%clk 0:00:08]}  Rg7 {[%clk 0:00:04]} 46. Rf6 {[%clk 0:00:08]}  d5 {[%clk 0:00:04]} 47. Rf3 {[%clk 0:00:08]}  a5 {[%clk 0:00:04]} 48. a3 {[%clk 0:00:08]}  axb4 {[%clk 0:00:04]} 49. axb4 {[%clk 0:00:09]}  Rh7 {[%clk 0:00:04]} 50. Rf6 {[%clk 0:00:09]}  Rg7 {[%clk 0:00:04]} 51. Kf4 {[%clk 0:00:08]}  Rg1 {[%clk 0:00:04]} 52. Ke5 {[%clk 0:00:07]}  Re1+ {[%clk 0:00:04]} 53. Kd6 {[%clk 0:00:08]}  Rd8+ {[%clk 0:00:03]} 54. Rd7 {[%clk 0:00:08]}  Rf8 {[%clk 0:00:04]} 55. Re6 {[%clk 0:00:06]}  Rf1 {[%clk 0:00:03]} 56. Ree7 {[%clk 0:00:06]}  Rf6+ {[%clk 0:00:03]} 57. Ke5 {[%clk 0:00:06]}  Rf5+ {[%clk 0:00:02]} 58. Kxf5 {[%clk 0:00:06]}  Rb8 {[%clk 0:00:02]} 59. Rb7+ {[%clk 0:00:05]}  Ka6 {[%clk 0:00:02]} 60. Ra7+ {[%clk 0:00:04]}  Kb6 {[%clk 0:00:02]} 61. Reb7+ {[%clk 0:00:05]}  Rxb7 {[%clk 0:00:03]} 62. Rxb7+ {[%clk 0:00:06]}  Ka6 {[%clk 0:00:03]} 63. f8=Q {[%clk 0:00:06]}  c5 {[%clk 0:00:03]} 64. Qxc5 {[%clk 0:00:06]}  Kxb7 {[%clk 0:00:04]} 65. Qxb5+ {[%clk 0:00:06]}  Kc7 {[%clk 0:00:05]} 66. Qxd5 {[%clk 0:00:07]}  Kb6 {[%clk 0:00:05]} 67. Qc5+ {[%clk 0:00:08]} 1-0


[Site "https://www.chess.com"]

[Event "Titled Tuesday Blitz June 8 2021"]
[White "Wagner, Dinara"]
[Black "Goryachkina, Aleksandra"]
[WhiteFideId "24157570"]
[BlackFideId "4147103"]
[WhiteElo "2260"]
[BlackElo "2441"]
[Result "1/2-1/2"]
[Round "08"]
[TimeControl "180+1"]
[Date "2021.06.08"]
[WhiteClock "0:00:39"]
[BlackClock "0:00:12"]

1. d4 {[%clk 0:02:49]}  Nf6 {[%clk 0:02:59]} 2. c4 {[%clk 0:02:48]}  e6 {[%clk 0:02:59]} 3. Nf3 {[%clk 0:02:49]}  d5 {[%clk 0:02:59]} 4. g3 {[%clk 0:02:49]}  Bb4+ {[%clk 0:02:59]} 5. Bd2 {[%clk 0:02:49]}  Bd6 {[%clk 0:02:59]} 6. Bg2 {[%clk 0:02:47]}  O-O {[%clk 0:02:59]} 7. Qc2 {[%clk 0:02:43]}  c6 {[%clk 0:02:53]} 8. a3 {[%clk 0:02:43]}  b6 {[%clk 0:02:52]} 9. O-O {[%clk 0:02:39]}  Bb7 {[%clk 0:02:37]} 10. cxd5 {[%clk 0:02:38]}  cxd5 {[%clk 0:02:36]} 11. Bb4 {[%clk 0:02:37]}  Nc6 {[%clk 0:02:32]} 12. Bxd6 {[%clk 0:02:33]}  Qxd6 {[%clk 0:02:32]} 13. Nc3 {[%clk 0:02:34]}  Rfc8 {[%clk 0:02:30]} 14. e3 {[%clk 0:02:27]}  Nd7 {[%clk 0:02:19]} 15. Rfc1 {[%clk 0:02:26]}  Na5 {[%clk 0:02:15]} 16. b3 {[%clk 0:02:19]}  Qe7 {[%clk 0:02:05]} 17. Qb2 {[%clk 0:02:18]}  Ba6 {[%clk 0:01:55]} 18. Bf1 {[%clk 0:02:13]}  Bxf1 {[%clk 0:01:54]} 19. Kxf1 {[%clk 0:02:13]}  Rc6 {[%clk 0:01:44]} 20. Nb5 {[%clk 0:02:10]}  a6 {[%clk 0:01:31]} 21. Rxc6 {[%clk 0:01:46]}  Nxc6 {[%clk 0:01:31]} 22. Rc1 {[%clk 0:01:41]}  Rc8 {[%clk 0:01:28]} 23. Nc3 {[%clk 0:01:40]}  b5 {[%clk 0:01:22]} 24. Ne2 {[%clk 0:01:37]}  Qf8 {[%clk 0:01:16]} 25. Rc2 {[%clk 0:01:34]}  Na5 {[%clk 0:01:10]} 26. Nc1 {[%clk 0:01:19]}  Rxc2 {[%clk 0:00:46]} 27. Qxc2 {[%clk 0:01:20]}  Qxa3 {[%clk 0:00:40]} 28. Qc8+ {[%clk 0:01:20]}  Nf8 {[%clk 0:00:40]} 29. Ne5 {[%clk 0:01:21]}  Qd6 {[%clk 0:00:22]} 30. Kg2 {[%clk 0:01:07]}  f6 {[%clk 0:00:22]} 31. Ned3 {[%clk 0:01:07]}  Qc6 {[%clk 0:00:21]} 32. Qd8 {[%clk 0:01:02]}  Nb7 {[%clk 0:00:20]} 33. Qa8 {[%clk 0:01:02]}  Qb6 {[%clk 0:00:18]} 34. Qc8 {[%clk 0:00:48]}  Nd6 {[%clk 0:00:16]} 35. Qa8 {[%clk 0:00:48]}  Nb7 {[%clk 0:00:14]} 36. Qc8 {[%clk 0:00:48]}  Nd6 {[%clk 0:00:14]} 37. Qa8 {[%clk 0:00:46]}  Qb7 {[%clk 0:00:13]} 38. Qd8 {[%clk 0:00:45]}  Nf7 {[%clk 0:00:13]} 39. Qe8 {[%clk 0:00:38]}  Nd6 {[%clk 0:00:13]} 40. Qd8 {[%clk 0:00:38]}  Nf7 {[%clk 0:00:12]} 41. Qe8 {[%clk 0:00:38]}  Nd6 {[%clk 0:00:12]} 42. Qd8 {[%clk 0:00:39]} 1/2-1/2


[Site "https://www.chess.com"]

[Event "Titled Tuesday Blitz June 8 2021"]
[White "Fus, Jakub"]
[Black "Holt, Conrad"]
[WhiteFideId "1193023"]
[BlackFideId "2034387"]
[WhiteElo "2138"]
[BlackElo "2586"]
[Result "0-1"]
[Round "08"]
[TimeControl "180+1"]
[Date "2021.06.08"]
[WhiteClock "0:00:10"]
[BlackClock "0:00:13"]

1. d4 {[%clk 0:03:00]}  d5 {[%clk 0:02:59]} 2. c4 {[%clk 0:03:01]}  c6 {[%clk 0:02:59]} 3. Nf3 {[%clk 0:03:01]}  Nf6 {[%clk 0:02:59]} 4. e3 {[%clk 0:03:01]}  Bf5 {[%clk 0:02:59]} 5. Nc3 {[%clk 0:03:00]}  e6 {[%clk 0:02:59]} 6. Nh4 {[%clk 0:03:00]}  Bg6 {[%clk 0:02:58]} 7. g3 {[%clk 0:02:59]}  Nbd7 {[%clk 0:02:58]} 8. Qb3 {[%clk 0:02:58]}  Qc7 {[%clk 0:02:57]} 9. Bg2 {[%clk 0:02:55]}  Bd3 {[%clk 0:02:12]} 10. cxd5 {[%clk 0:02:28]}  cxd5 {[%clk 0:02:11]} 11. Bd2 {[%clk 0:02:01]}  Qb6 {[%clk 0:01:57]} 12. Nxd5 {[%clk 0:01:39]}  Qxb3 {[%clk 0:01:54]} 13. Nxf6+ {[%clk 0:01:38]}  Nxf6 {[%clk 0:01:50]} 14. axb3 {[%clk 0:01:39]}  Ne4 {[%clk 0:01:49]} 15. Nf3 {[%clk 0:01:26]}  Bd6 {[%clk 0:01:17]} 16. Bf1 {[%clk 0:01:25]}  Bc2 {[%clk 0:01:03]} 17. Bc4 {[%clk 0:00:49]}  Ke7 {[%clk 0:00:57]} 18. Rc1 {[%clk 0:00:47]}  Nxd2 {[%clk 0:00:53]} 19. Nxd2 {[%clk 0:00:44]}  Bg6 {[%clk 0:00:53]} 20. Ke2 {[%clk 0:00:45]}  e5 {[%clk 0:00:21]} 21. Nf3 {[%clk 0:00:16]}  Bh5 {[%clk 0:00:18]} 22. Bd5 {[%clk 0:00:16]}  exd4 {[%clk 0:00:16]} 23. exd4 {[%clk 0:00:14]}  Rhd8 {[%clk 0:00:15]} 24. Rhe1 {[%clk 0:00:11]}  Bb4 {[%clk 0:00:14]} 25. Kd3+ {[%clk 0:00:11]}  Kf8 {[%clk 0:00:14]} 26. Bxb7 {[%clk 0:00:09]}  Rab8 {[%clk 0:00:14]} 27. Bc6 {[%clk 0:00:09]}  Bxe1 {[%clk 0:00:14]} 28. Rxe1 {[%clk 0:00:10]}  Rxb3+ {[%clk 0:00:14]} 29. Kc4 {[%clk 0:00:10]}  Rxf3 {[%clk 0:00:14]} 30. Bxf3 {[%clk 0:00:09]}  Bxf3 {[%clk 0:00:15]} 31. Re5 {[%clk 0:00:09]}  f6 {[%clk 0:00:14]} 32. Ra5 {[%clk 0:00:09]}  Rd7 {[%clk 0:00:15]} 33. d5 {[%clk 0:00:10]}  Ke7 {[%clk 0:00:15]} 34. Kd4 {[%clk 0:00:10]}  Bg2 {[%clk 0:00:14]} 35. b4 {[%clk 0:00:10]}  Kf7 {[%clk 0:00:14]} 36. Ra6 {[%clk 0:00:10]}  Rxd5+ {[%clk 0:00:13]} 0-1


[Site "https://www.chess.com"]

[Event "Titled Tuesday Blitz June 8 2021"]
[White "Gahan, M G"]
[Black "Ibrahimli, Murad"]
[WhiteFideId "5027373"]
[BlackFideId "13410229"]
[WhiteElo "2264"]
[BlackElo "2109"]
[Result "0-1"]
[Round "08"]
[TimeControl "180+1"]
[Date "2021.06.08"]
[WhiteClock "0:00:05"]
[BlackClock "0:00:05"]

1. e4 {[%clk 0:03:00]}  c5 {[%clk 0:02:59]} 2. c3 {[%clk 0:03:01]}  d5 {[%clk 0:02:56]} 3. exd5 {[%clk 0:03:01]}  Qxd5 {[%clk 0:02:57]} 4. d4 {[%clk 0:03:02]}  Nf6 {[%clk 0:02:56]} 5. Nf3 {[%clk 0:03:02]}  Bg4 {[%clk 0:02:55]} 6. dxc5 {[%clk 0:03:02]}  Qxc5 {[%clk 0:02:46]} 7. Be3 {[%clk 0:03:02]}  Qa5 {[%clk 0:02:41]} 8. Na3 {[%clk 0:02:59]}  Nc6 {[%clk 0:02:40]} 9. Nc4 {[%clk 0:02:58]}  Qc7 {[%clk 0:02:41]} 10. h3 {[%clk 0:02:56]}  Bh5 {[%clk 0:02:31]} 11. Be2 {[%clk 0:02:55]}  e6 {[%clk 0:02:31]} 12. Qa4 {[%clk 0:02:55]}  Nd5 {[%clk 0:02:18]} 13. O-O {[%clk 0:02:37]}  Be7 {[%clk 0:02:13]} 14. Rad1 {[%clk 0:02:30]}  O-O {[%clk 0:02:12]} 15. Rfe1 {[%clk 0:02:25]}  a6 {[%clk 0:02:10]} 16. Rxd5 {[%clk 0:01:59]}  exd5 {[%clk 0:02:08]} 17. Nb6 {[%clk 0:01:59]}  Rad8 {[%clk 0:02:08]} 18. Qb3 {[%clk 0:01:54]}  Qd6 {[%clk 0:01:46]} 19. Rd1 {[%clk 0:01:50]}  d4 {[%clk 0:01:35]} 20. cxd4 {[%clk 0:01:41]}  Na5 {[%clk 0:01:22]} 21. Nc4 {[%clk 0:01:28]}  Nxb3 {[%clk 0:01:21]} 22. Nxd6 {[%clk 0:01:28]}  Bxd6 {[%clk 0:01:21]} 23. axb3 {[%clk 0:01:29]}  Rfe8 {[%clk 0:01:17]} 24. Kf1 {[%clk 0:01:23]}  Bg6 {[%clk 0:01:15]} 25. Rc1 {[%clk 0:01:21]}  Rc8 {[%clk 0:01:14]} 26. Rc3 {[%clk 0:01:19]}  b5 {[%clk 0:01:10]} 27. Bd1 {[%clk 0:00:58]}  Bb4 {[%clk 0:01:07]} 28. Rxc8 {[%clk 0:00:55]}  Rxc8 {[%clk 0:01:08]} 29. Ke2 {[%clk 0:00:55]}  Be4 {[%clk 0:01:03]} 30. g4 {[%clk 0:00:45]}  Bd5 {[%clk 0:00:56]} 31. Ne5 {[%clk 0:00:42]}  Bd6 {[%clk 0:00:49]} 32. Nd3 {[%clk 0:00:41]}  f6 {[%clk 0:00:47]} 33. Nc5 {[%clk 0:00:39]}  Rc6 {[%clk 0:00:41]} 34. b4 {[%clk 0:00:37]}  Kf7 {[%clk 0:00:41]} 35. Bc2 {[%clk 0:00:33]}  g6 {[%clk 0:00:40]} 36. h4 {[%clk 0:00:30]}  Bc7 {[%clk 0:00:36]} 37. h5 {[%clk 0:00:26]}  a5 {[%clk 0:00:36]} 38. bxa5 {[%clk 0:00:22]}  Bxa5 {[%clk 0:00:37]} 39. hxg6+ {[%clk 0:00:20]}  hxg6 {[%clk 0:00:37]} 40. Bd2 {[%clk 0:00:19]}  Bxd2 {[%clk 0:00:29]} 41. Kxd2 {[%clk 0:00:19]}  b4 {[%clk 0:00:28]} 42. Bd3 {[%clk 0:00:15]}  Rb6 {[%clk 0:00:23]} 43. f4 {[%clk 0:00:15]}  Rb8 {[%clk 0:00:22]} 44. g5 {[%clk 0:00:14]}  f5 {[%clk 0:00:21]} 45. Nd7 {[%clk 0:00:14]}  Rh8 {[%clk 0:00:20]} 46. Ne5+ {[%clk 0:00:14]}  Kg7 {[%clk 0:00:20]} 47. Be2 {[%clk 0:00:12]}  Rh2 {[%clk 0:00:20]} 48. Nd3 {[%clk 0:00:11]}  Bf3 {[%clk 0:00:19]} 49. Nc1 {[%clk 0:00:11]}  Be4 {[%clk 0:00:14]} 50. Ke3 {[%clk 0:00:06]}  Rh3+ {[%clk 0:00:14]} 51. Kd2 {[%clk 0:00:07]}  Kf7 {[%clk 0:00:14]} 52. Na2 {[%clk 0:00:03]}  Ke7 {[%clk 0:00:08]} 53. Nxb4 {[%clk 0:00:03]}  Rb3 {[%clk 0:00:08]} 54. Nd3 {[%clk 0:00:03]}  Bxd3 {[%clk 0:00:09]} 55. Bxd3 {[%clk 0:00:03]}  Rxb2+ {[%clk 0:00:09]} 56. Kc3 {[%clk 0:00:04]}  Rf2 {[%clk 0:00:10]} 57. Kc4 {[%clk 0:00:03]}  Rxf4 {[%clk 0:00:10]} 58. Kd5 {[%clk 0:00:04]}  Rg4 {[%clk 0:00:10]} 59. Ke5 {[%clk 0:00:05]}  Rxg5 {[%clk 0:00:11]} 60. d5 {[%clk 0:00:05]}  Rg1 {[%clk 0:00:05]} 61. d6+ {[%clk 0:00:06]}  Kd8 {[%clk 0:00:05]} 62. Kf6 {[%clk 0:00:06]}  f4 {[%clk 0:00:04]} 63. Be4 {[%clk 0:00:04]}  f3 {[%clk 0:00:04]} 64. Bxf3 {[%clk 0:00:04]}  Rf1 {[%clk 0:00:05]} 65. Kg5 {[%clk 0:00:05]}  Rxf3 {[%clk 0:00:05]} 0-1


[Site "https://www.chess.com"]